bitfinex-derivatives/quotes_SOLF0:USTF0_20250630
["timestamp","ask_amount","ask_price","bid_price","bid_amount"]
[1751324631106,6.4418,155.2,155.18,6.4423]
[1751324632008,6.4418,155.2,155.17,50.3628]
[1751324635213,6.4422,155.19,155.17,50.3628]
[1751324636312,6.4419,155.2,155.18,6.4425]
[1751324637312,8.91013453,155.21,155.17,43.92]
[1751324637612,6.4424,155.19,155.17,50.3629]
[1751324638713,6.4425,155.18,155.17,43.92]
[1751324638908,2.92311911,155.19,155.1,51.98979238]
[1751324639112,2.92311911,155.19,155.13,6.4445]
[1751324639113,6.444,155.15,155.13,6.4445]
[1751324640611,6.4442,155.14,155.06,15.5441035]
[1751324640812,6.4442,155.14,155.08,2.92311911]
[1751324641208,6.4442,155.14,155.11,6.445]
[1751324641412,6.4442,155.14,155.08,2.92311911]
[1751324642517,6.4442,155.14,155.11,6.4451]
[1751324643317,6.4442,155.14,155.12,6.4449]
[1751324643815,2.92311911,155.15,155.07,46.88311911]
[1751324644218,8.91013453,155.17,155.09,2.92311911]
[1751324644517,8.91013453,155.17,155.13,6.4443]
[1751324644908,6.444,155.15,155.13,6.4443]
[1751324645610,6.444,155.15,155.12,6.4448]
[1751324645916,8.91013453,155.18,155.11,2.92311911]
[1751324646118,8.91013453,155.18,155.13,6.4443]
[1751324646320,2.92311911,155.18,155.12,43.96]
[1751324646511,5.98701542,155.19,155.13,2.92311911]
[1751324646712,11.06153453,155.2,155.13,2.92311911]
[1751324647416,6.4423,155.19,155.16,6.4434]
[1751324648412,2.92311911,155.18,155.07,8.02979238]
[1751324648716,2.92311911,155.14,155.07,43.96]
[1751324649218,6.445,155.12,155.1,6.4457]
[1751324649517,2.92311911,155.14,155.1,6.4457]
[1751324650014,9.36751911,155.14,155.11,6.4452]
[1751324651117,9.36751911,155.14,155.12,6.4449]
[1751324651320,2.92311911,155.14,155.07,43.96]
[1751324651615,2.92311911,155.14,155.08,2.92311911]
[1751324651817,2.92311911,155.14,155.11,6.4452]
[1751324652011,9.36771911,155.14,155.11,6.4452]
[1751324654114,9.36771911,155.14,155.12,6.4449]
[1751324654819,9.36771911,155.14,155.11,6.4452]
[1751324655024,6.4446,155.13,155.11,6.4452]
[1751324655823,9.36741911,155.14,155.11,6.4452]
[1751324659430,6.4446,155.13,155.11,6.4452]
[1751324660132,9.36751911,155.14,155.11,6.4452]
[1751324660632,2.92311911,155.14,155.11,6.4452]
[1751324661529,9.36761911,155.14,155.11,6.4452]
[1751324661833,2.92311911,155.14,155.1,6.4456]
[1751324662332,6.4446,155.13,155.1,6.4456]
[1751324663431,6.4452,155.12,155.09,6.4461]
[1751324665644,6.4455,155.11,155.09,6.4461]
[1751324665936,6.4455,155.11,155.08,6.4465]
[1751324667732,6.4455,155.11,155.09,6.4462]
[1751324668744,2.92311911,155.15,155.08,2.92311911]
[1751324668944,2.92311911,155.16,155.08,2.92311911]
[1751324669244,6.4448,155.13,155.1,6.4456]
[1751324669442,2.92311911,155.16,155.08,2.92311911]
[1751324669738,6.4444,155.14,155.1,6.4457]
[1751324670042,2.92311911,155.16,155.1,6.4457]
[1751324670543,6.4449,155.13,155.1,6.4457]
[1751324672542,6.4449,155.13,155.11,6.4454]
[1751324672741,8.22341542,155.17,155.08,2.92311911]
[1751324672941,8.91013453,155.18,155.12,2.92311911]
[1751324673140,5.98701542,155.19,155.14,2.92311911]
[1751324673442,5.98701542,155.19,155.17,6.4429]
[1751324674336,6.4421,155.19,155.16,6.4432]
[1751324675044,6.4421,155.19,155.14,46.90311911]
[1751324675045,6.4421,155.19,155.17,6.4429]
[1751324675240,6.4421,155.19,155.14,46.90311911]
[1751324675940,6.4421,155.19,155.16,6.4432]
[1751324676444,8.91013453,155.21,155.15,6.4435]
[1751324677041,6.4426,155.18,155.15,6.4435]
[1751324677442,2.92311911,155.17,155.14,43.98]
[1751324677642,2.92311911,155.17,155.1,46.90311911]
[1751324677643,6.4441,155.15,155.1,46.90311911]
[1751324678041,6.4441,155.15,155.12,6.4448]
[1751324678545,6.4442,155.14,155.12,6.4448]
[1751324678748,2.92311911,155.17,155.12,6.4448]
[1751324678947,6.4439,155.15,155.12,6.4448]
[1751324680048,6.4436,155.16,155.13,6.4446]
[1751324681253,6.4438,155.15,155.13,6.4446]
[1751324681453,6.4438,155.15,155.12,6.4449]
[1751324682753,6.4443,155.14,155.11,6.4453]
[1751324683346,6.4443,155.14,155.12,6.4449]
[1751324683753,9.36711911,155.15,155.12,6.4449]
[1751324685847,6.4444,155.14,155.11,6.4452]
[1751324686050,2.92311911,155.13,155.1,43.98]
[1751324686451,9.36801911,155.13,155.1,50.4257]
[1751324686953,2.92311911,155.13,155.1,50.4257]
[1751324687553,6.4453,155.12,155.1,50.4257]
[1751324688054,6.4453,155.12,155.1,43.98]
[1751324688650,6.4454,155.11,155.1,43.98]
[1751324690555,6.4452,155.12,155.1,43.98]
[1751324692046,6.4452,155.12,155.1,50.4257]
[1751324694959,6.4452,155.12,155.1,43.98]
[1751324695852,2.92311911,155.11,155.0,24.90671734]
[1751324696158,8.23191542,155.15,155.0,24.90671734]
[1751324696159,2.92311911,155.09,155.02,603.68311911]
[1751324696352,2.92311911,155.09,155.07,6.4468]
[1751324697053,9.36961911,155.09,155.07,6.4468]
[1751324697452,9.36961911,155.09,155.06,6.4474]
[1751324698158,6.4465,155.09,155.06,6.4474]
[1751324699158,2.92311911,155.1,155.03,2.0824]
[1751324699655,6.4464,155.09,155.06,6.4472]
[1751324700158,8.07241542,155.13,155.08,6.4466]
[1751324700361,2.92311911,155.12,155.08,6.4466]
[1751324700754,6.4461,155.1,155.08,6.4466]
[1751324702255,5.98701542,155.14,155.08,43.98]
[1751324702454,2.92311911,155.14,155.08,46.90311911]
[1751324702859,9.36761911,155.14,155.1,6.4455]
[1751324703260,9.36761911,155.14,155.08,46.90311911]
[1751324703261,2.92311911,155.14,155.08,46.90311911]
[1751324703561,2.92311911,155.14,155.1,6.4458]
[1751324704655,6.4451,155.12,155.09,6.4461]
[1751324705255,2.92311911,155.12,155.03,3.20460054]
[1751324705461,2.92311911,155.12,155.06,43.98]
[1751324706161,6.4462,155.1,155.07,6.4469]
[1751324706661,6.4471,155.07,155.06,43.98]
[1751324706866,2.92311911,155.1,155.06,43.98]
[1751324707661,6.447,155.08,155.06,43.98]
[1751324708864,6.4471,155.07,155.06,43.98]
[1751324710560,6.4471,155.07,155.04,6.4481]
[1751324711461,6.4471,155.07,155.05,6.4479]
[1751324712364,2.92311911,155.06,155.02,600.76]
[1751324712564,2.92311911,155.06,155.02,43.98]
[1751324712964,6.4486,155.04,155.02,50.4291]
[1751324713164,6.4486,155.04,155.02,43.98]
[1751324714364,6.4486,155.04,155.02,50.4291]
[1751324714557,6.4481,155.05,155.02,50.4291]
[1751324714755,6.4481,155.05,155.02,43.98]
[1751324715666,9.37071911,155.06,155.03,6.4484]
[1751324716066,2.92311911,155.06,155.02,43.98]
[1751324716466,6.4482,155.05,155.02,50.429]
[1751324716667,6.4482,155.05,155.02,43.98]
[1751324717564,6.4482,155.05,155.03,6.4488]
[1751324718865,2.92311911,155.06,154.98,46.92311911]
[1751324719165,2.92311911,155.06,154.98,49.13501911]
[1751324719465,9.37071911,155.06,154.98,49.13501911]
[1751324719966,9.37071911,155.06,155.03,6.4486]
[1751324720666,2.92311911,155.06,154.98,49.13501911]
[1751324720864,2.92311911,155.06,155.0,2.92311911]
[1751324721369,2.92311911,155.06,155.05,6.4479]
[1751324721564,2.92311911,155.07,155.0,2.92311911]
[1751324722366,2.92311911,155.07,155.05,6.4479]
[1751324722774,5.9859103,155.11,155.02,2.92311911]
[1751324722775,6.4465,155.09,155.02,2.92311911]
[1751324722961,2.92311911,155.11,155.03,44.0]
[1751324723268,6.4461,155.1,155.04,2.92311911]
[1751324723469,6.4461,155.1,155.08,6.4467]
[1751324723766,6.4461,155.1,155.04,2.92311911]
[1751324724160,6.4461,155.1,155.07,6.4469]
[1751324724566,6.4461,155.1,155.04,2.92311911]
[1751324725169,2.92311911,155.13,155.06,2.92311911]
[1751324725571,6.4452,155.12,155.09,6.4463]
[1751324726066,6.4452,155.12,155.1,6.4458]
[1751324726268,6.4452,155.12,155.06,2.92311911]
[1751324727175,9.36791911,155.13,155.1,6.4459]
[1751324728471,6.4451,155.12,155.09,6.4461]
[1751324728967,6.4451,155.12,155.06,2.92311911]
[1751324730172,9.36781911,155.13,155.1,6.4456]
[1751324730472,9.36781911,155.13,155.06,2.92311911]
[1751324730675,5.9859103,155.15,155.11,6.4452]
[1751324730676,6.4445,155.14,155.11,6.4452]
[1751324731576,6.4445,155.14,155.12,6.4449]
[1751324731775,9.36711911,155.15,155.12,6.4449]
[1751324732077,8.90902941,155.17,155.1,2.92311911]
[1751324732373,6.4436,155.16,155.1,2.92311911]
[1751324732771,2.92311911,155.17,155.1,2.92311911]
[1751324733475,6.4434,155.16,155.13,6.4444]
[1751324734568,6.4434,155.16,155.14,6.4441]
[1751324734767,9.36621911,155.17,155.14,6.4441]
[1751324735776,6.4434,155.16,155.14,6.4441]
[1751324736178,9.36631911,155.17,155.14,6.4441]
[1751324738283,6.4432,155.17,155.14,6.4441]
[1751324739884,9.36581911,155.18,155.15,6.4437]
[1751324740778,9.36581911,155.18,155.16,6.4433]
[1751324741387,5.9859103,155.23,155.14,47.02311911]
[1751324741684,2.92311911,155.23,155.14,47.02311911]
[1751324742176,6.4413,155.21,155.19,6.4421]
[1751324742579,2.92311911,155.23,155.19,6.4421]
[1751324742884,6.4411,155.22,155.19,6.4421]
[1751324744387,6.4414,155.21,155.19,6.4421]
[1751324747188,6.4411,155.22,155.19,6.4421]
[1751324747583,2.92311911,155.23,155.19,6.4421]
[1751324748088,6.441,155.22,155.19,6.4421]
[1751324748282,2.92311911,155.23,155.18,6.4424]
[1751324748775,6.4415,155.21,155.18,6.4424]
[1751324748984,6.4415,155.21,155.14,47.02311911]
[1751324749389,6.4415,155.21,155.18,6.4423]
[1751324750086,6.4415,155.21,155.19,6.4421]
[1751324750286,6.441,155.22,155.14,47.02311911]
[1751324750590,6.441,155.22,155.19,6.4419]
[1751324751891,2.92311911,155.25,155.16,2.92311911]
[1751324752294,6.4403,155.24,155.21,6.441]
[1751324754098,6.4405,155.23,155.21,6.441]
[1751324756596,2.1822,155.26,155.2,2.92311911]
[1751324756898,2.92311911,155.27,155.2,2.92311911]
[1751324757100,6.4394,155.26,155.2,2.92311911]
[1751324758106,6.4394,155.26,155.24,6.44]
[1751324758494,9.36211911,155.27,155.24,6.44]
[1751324758699,6.439,155.27,155.25,6.4395]
[1751324759503,6.439,155.27,155.24,6.4398]
[1751324760300,6.4386,155.28,155.25,6.4396]
[1751324760495,2.92311911,155.29,155.25,6.4396]
[1751324761298,2.1866,155.3,155.25,6.4396]
[1751324761598,2.92311911,155.29,155.25,6.4396]
[1751324761902,6.4386,155.28,155.24,6.4399]
[1751324762706,6.4388,155.27,155.25,6.4396]
[1751324763502,6.4386,155.28,155.25,6.4396]
[1751324763707,7.33321911,155.31,155.24,46.92311911]
[1751324763894,7.33321911,155.31,155.24,44.0]
[1751324763895,4.4101,155.31,155.24,44.0]
[1751324764100,2.92311911,155.29,155.25,6.4394]
[1751324764500,6.4387,155.28,155.24,44.0]
[1751324764703,6.4387,155.28,155.25,6.4393]
[1751324765903,6.4388,155.27,155.25,6.4393]
[1751324766304,6.4388,155.27,155.24,50.4399]
[1751324767202,6.4392,155.26,155.24,44.0]
[1751324767404,2.92311911,155.29,155.24,44.0]
[1751324768401,6.439,155.27,155.24,50.4398]
[1751324771408,5.9859103,155.32,155.24,44.0]
[1751324771603,2.92311911,155.31,155.24,44.0]
[1751324772406,6.4382,155.29,155.26,6.4389]
[1751324776513,6.4382,155.29,155.27,6.4388]
[1751324776807,6.4378,155.3,155.24,44.0]
[1751324777008,6.4378,155.3,155.27,6.4385]
[1751324777312,9.36041911,155.31,155.25,2.92311911]
[1751324777616,6.4373,155.31,155.28,6.4382]
[1751324778514,5.9859103,155.34,155.25,2.92311911]
[1751324778813,8.90902941,155.37,155.29,2.92311911]
[1751324779012,8.90902941,155.37,155.32,6.4365]
[1751324779312,6.4357,155.35,155.32,6.4365]
[1751324782814,9.35841911,155.36,155.33,6.4362]
[1751324784714,6.4355,155.35,155.32,6.4365]
[1751324784917,2.92311911,155.36,155.29,46.90311911]
[1751324785421,6.4358,155.35,155.31,6.4371]
[1751324786622,6.4358,155.35,155.32,6.4365]
[1751324787616,6.4363,155.33,155.29,46.90311911]
[1751324788624,6.4361,155.34,155.31,6.4369]
[1751324790326,6.4365,155.33,155.31,6.4369]
[1751324790528,2.92311911,155.36,155.3,6.4375]
[1751324791321,2.92311911,155.34,155.3,6.4375]
[1751324791828,6.4364,155.33,155.3,6.4375]
[1751324794427,6.4369,155.32,155.3,6.4375]
[1751324794618,6.4369,155.32,155.29,50.4178]
[1751324795532,6.4369,155.32,155.3,6.4375]
[1751324795726,6.4369,155.32,155.27,49.01631911]
[1751324796132,6.4369,155.32,155.29,6.4377]
[1751324797632,2.92311911,155.32,155.27,44.02]
[1751324797827,2.92311911,155.3,155.27,44.02]
[1751324799131,6.4383,155.29,155.27,44.02]
[1751324800424,6.4383,155.29,155.27,50.4587]
[1751324801427,9.36071911,155.3,155.28,6.4384]
[1751324801822,2.92311911,155.3,155.22,2.2579]
[1751324802028,2.92311911,155.28,155.23,44.04]
[1751324802332,9.36171911,155.28,155.25,6.4394]
[1751324807328,9.36171911,155.28,155.23,44.04]
[1751324807533,9.36171911,155.28,155.26,6.4392]
[1751324807736,2.92311911,155.28,155.26,6.4392]
[1751324809135,9.36151911,155.28,155.26,6.4392]
[1751324812431,9.36151911,155.28,155.25,6.4394]
[1751324813132,2.92311911,155.28,155.25,6.4394]
[1751324813337,6.4389,155.27,155.25,6.4394]
[1751324813838,8.30798395,155.27,155.25,6.4394]
[1751324814032,5.9859103,155.29,155.23,44.04]
[1751324814239,1.86908395,155.29,155.25,1.86908395]
[1751324815339,8.30738395,155.29,155.26,6.4391]
[1751324816839,1.86908395,155.28,155.26,6.4391]
[1751324817535,5.9859103,155.31,155.25,1.86908395]
[1751324817734,5.9859103,155.31,155.25,2.91901791]
[1751324817936,8.90492821,155.32,155.25,2.91901791]
[1751324818439,6.4377,155.3,155.27,6.4386]
[1751324818840,8.90492821,155.32,155.25,2.91901791]
[1751324819041,6.4374,155.31,155.28,6.438]
[1751324819534,8.90492821,155.32,155.29,6.4377]
[1751324819535,12.4228103,155.32,155.29,6.4377]
[1751324819937,6.4369,155.32,155.29,6.4377]
[1751324820242,5.9859103,155.33,155.28,43.96]
[1751324820438,5.9859103,155.34,155.28,43.96]
[1751324820637,8.1156103,155.35,155.28,43.96]
[1751324820845,6.4362,155.34,155.31,6.4369]
[1751324821234,12.4215103,155.35,155.28,43.96]
[1751324821543,12.4215103,155.35,155.29,2.91901791]
[1751324821744,5.9859103,155.35,155.29,2.91901791]
[1751324822043,6.436,155.34,155.31,6.437]
[1751324823138,6.4356,155.35,155.32,6.4366]
[1751324823944,6.436,155.34,155.32,6.4366]
[1751324824246,6.436,155.34,155.31,6.437]
[1751324826141,6.436,155.34,155.32,6.4366]
[1751324829744,6.4357,155.35,155.32,6.4366]
[1751324837362,6.4357,155.35,155.33,6.4363]
[1751324837856,1.86720537,155.35,155.33,6.4363]
[1751324838859,12.23225364,155.38,155.34,1.86720537]
[1751324839155,7.85311567,155.39,155.35,1.86720537]
[1751324839461,14.28721567,155.39,155.36,6.4348]
[1751324840256,8.30130537,155.39,155.36,6.4348]
[1751324841462,6.4343,155.38,155.36,6.4348]
[1751324842559,6.434,155.39,155.36,6.4348]
[1751324842754,6.434,155.39,155.33,46.87593296]
[1751324844060,6.434,155.39,155.36,6.4348]
[1751324846263,6.434,155.39,155.37,6.4346]
[1751324846463,6.4336,155.4,155.37,6.4346]
[1751324846663,2.91593296,155.41,155.37,6.4346]
[1751324847063,6.4335,155.4,155.37,6.4346]
[1751324847265,2.91593296,155.41,155.37,6.4346]
[1751324847965,6.4341,155.39,155.37,6.4346]
[1751324849266,6.4343,155.38,155.36,6.435]
[1751324849461,2.91593296,155.41,155.36,6.435]
[1751324849669,2.91593296,155.41,155.34,43.94]
[1751324850167,6.434,155.39,155.37,6.4345]
[1751324851167,6.434,155.39,155.36,6.4349]
[1751324853172,6.434,155.39,155.37,6.4347]
[1751324853668,6.434,155.39,155.36,6.4349]
[1751324853967,6.4343,155.38,155.36,6.4349]
[1751324854371,6.4343,155.38,155.35,6.4353]
[1751324855565,6.4347,155.37,155.34,43.94]
[1751324855764,2.91593296,155.39,155.34,43.94]
[1751324855967,2.91593296,155.35,155.27,4.4503]
[1751324856170,43.94,155.38,155.21,568.40701734]
[1751324856171,2.91593296,155.32,155.26,43.94]
[1751324856564,6.4374,155.31,155.29,6.438]
[1751324856970,6.4374,155.31,155.26,43.94]
[1751324857175,9.35283296,155.32,155.26,43.94]
[1751324857871,2.91593296,155.32,155.26,43.94]
[1751324858265,9.35293296,155.32,155.29,6.4379]
[1751324859673,9.35293296,155.32,155.3,6.4374]
[1751324859973,2.91593296,155.32,155.26,43.94]
[1751324861273,2.91593296,155.32,155.3,6.4373]
[1751324861775,9.35273296,155.32,155.26,43.94]
[1751324862474,9.35273296,155.32,155.29,6.4378]
[1751324862676,9.35273296,155.32,155.26,43.94]
[1751324863579,9.35273296,155.32,155.3,6.4375]
[1751324863777,2.91593296,155.32,155.3,6.4375]
[1751324864178,9.35243296,155.33,155.3,6.4375]
[1751324864475,6.4367,155.32,155.29,6.4378]
[1751324866076,9.35243296,155.33,155.3,6.4375]
[1751324867777,1.86803829,155.31,155.3,6.4375]
[1751324868680,6.4366,155.33,155.3,6.4375]
[1751324868883,1.86803829,155.32,155.3,6.4375]
[1751324869776,8.30463829,155.33,155.31,6.4372]
[1751324871482,1.86803829,155.33,155.31,6.4372]
[1751324871683,1.86803829,155.33,155.3,6.4375]
[1751324871980,1.86803829,155.32,155.3,6.4375]
[1751324873585,8.30483829,155.32,155.3,6.4375]
[1751324874080,1.86803829,155.32,155.29,6.4378]
[1751324874285,8.30523829,155.31,155.29,6.4378]
[1751324874487,8.30523829,155.31,155.27,1.86803829]
[1751324875382,6.4376,155.3,155.28,6.4382]
[1751324875876,8.30563829,155.3,155.27,6.4386]
[1751324876884,6.438,155.29,155.26,50.379]
[1751324877089,1.86803829,155.29,155.26,43.94]
[1751324877279,1.86803829,155.3,155.26,45.80803829]
[1751324877789,1.86803829,155.3,155.27,6.4386]
[1751324878485,8.30583829,155.3,155.27,6.4386]
[1751324879394,8.30583829,155.3,155.28,6.4383]
[1751324880892,8.30583829,155.3,155.27,6.4386]
[1751324881195,8.30583829,155.3,155.26,45.80803829]
[1751324881793,1.86803829,155.3,155.28,6.4382]
[1751324883989,8.30563829,155.3,155.27,6.4386]
[1751324884397,8.30563829,155.3,155.26,45.80803829]
[1751324884598,1.86803829,155.3,155.28,6.4382]
[1751324888100,8.30563829,155.3,155.28,6.4382]
[1751324888900,1.86803829,155.29,155.28,6.4382]
[1751324890200,1.86803829,155.34,155.28,1.86803829]
[1751324890402,1.86803829,155.34,155.29,1.86803829]
[1751324890903,8.30453829,155.33,155.31,6.4369]
[1751324898802,12.4220103,155.34,155.32,6.4367]
[1751324899003,7.85394859,155.34,155.3,1.86803829]
[1751324899203,5.9859103,155.33,155.3,1.86803829]
[1751324899604,12.4222103,155.33,155.31,6.4369]
[1751324900908,14.29024859,155.33,155.3,6.4373]
[1751324901308,18.40542444,155.33,155.3,6.4373]
[1751324901512,12.4227103,155.32,155.3,6.4373]
[1751324902915,14.29074859,155.32,155.3,6.4373]
[1751324903514,1.86803829,155.31,155.27,4.4068]
[1751324903716,1.86803829,155.31,155.27,4.10993829]
[1751324904320,6.4377,155.3,155.28,6.4382]
[1751324904618,1.86803829,155.31,155.27,4.10993829]
[1751324904820,8.30543829,155.31,155.28,6.4383]
[1751324905523,8.30543829,155.31,155.29,6.4379]
[1751324908922,6.4374,155.31,155.29,6.4379]
[1751324910514,14.29084859,155.32,155.29,6.4379]
[1751324910718,14.29084859,155.32,155.3,6.4375]
[1751324911724,6.4372,155.31,155.29,6.4378]
[1751324912423,14.29084859,155.32,155.29,6.4378]
[1751324915239,1.86803829,155.31,155.29,6.4378]
[1751324916028,1.86803829,155.31,155.3,6.4376]
[1751324918129,14.29084859,155.32,155.3,6.4376]
[1751324919527,5.9859103,155.32,155.31,6.4372]
[1751324919729,4.11517585,155.33,155.3,1.86745705]
[1751324919929,7.85336735,155.34,155.3,1.86745705]
[1751324920130,7.853255,155.34,155.32,6.4365]
[1751324921527,1.8673447,155.33,155.31,6.437]
[1751324921728,7.853255,155.33,155.31,6.437]
[1751324921928,14.289655,155.33,155.31,6.437]
[1751324922327,14.289655,155.33,155.3,6.4373]
[1751324922527,6.4368,155.32,155.3,6.4373]
[1751324922729,1.8673447,155.32,155.28,1.8673447]
[1751324922929,1.8673447,155.31,155.27,4.1092447]
[1751324923533,1.8673447,155.31,155.28,6.4383]
[1751324923734,1.8673447,155.3,155.28,6.4383]
[1751324924532,8.3049447,155.3,155.28,6.4383]
[1751324925535,6.4376,155.3,155.28,6.4383]
[1751324926331,6.4376,155.3,155.27,1.8673447]
[1751324926536,6.438,155.29,155.27,6.4388]
[1751324927034,6.4378,155.3,155.28,6.4383]
[1751324927330,8.3051447,155.3,155.26,45.8073447]
[1751324927937,8.3051447,155.3,155.27,6.4386]
[1751324928235,1.8673447,155.29,155.26,43.94]
[1751324929735,6.4382,155.29,155.27,6.4388]
[1751324930437,5.9859103,155.3,155.28,1.8673447]
[1751324930633,5.9859103,155.31,155.29,1.8673447]
[1751324930838,5.9859103,155.32,155.29,1.8673447]
[1751324931436,12.4229103,155.32,155.29,8.3050447]
[1751324931734,12.4229103,155.32,155.29,6.4377]
[1751324931939,12.4229103,155.32,155.3,6.4376]
[1751324932837,5.9859103,155.31,155.28,6.4382]
[1751324933439,12.4233103,155.31,155.28,6.4382]
[1751324935041,12.4233103,155.31,155.29,6.438]
[1751324940243,12.4233103,155.31,155.28,6.4382]
[1751324940543,6.4376,155.3,155.28,6.4382]
[1751324946048,12.4233103,155.31,155.26,43.94]
[1751324946848,12.4233103,155.31,155.28,6.4382]
[1751324949353,12.4233103,155.31,155.29,6.438]
[1751324949947,5.9859103,155.31,155.3,6.4376]
[1751324950348,5.9859103,155.32,155.3,6.4376]
[1751324952554,12.4227103,155.32,155.3,6.4376]
[1751324953950,14.29049786,155.32,155.3,6.4376]
[1751324955650,8.30458756,155.32,155.3,6.4376]
[1751324956146,7.85369786,155.33,155.31,6.4372]
[1751324957854,5.9859103,155.33,155.31,6.4372]
[1751324958455,5.9859103,155.33,155.3,6.4374]
[1751324958456,14.28999786,155.33,155.3,6.4374]
[1751324958754,14.28999786,155.33,155.29,1.86778756]
[1751324959750,14.28999786,155.33,155.31,6.4371]
[1751324960853,7.85369786,155.33,155.31,6.4371]
[1751324963053,5.9859103,155.33,155.32,6.4367]
[1751324965658,12.4223103,155.33,155.31,6.4369]
[1751324966058,5.9859103,155.33,155.31,6.4369]
[1751324968361,12.4223103,155.33,155.31,6.4369]
[1751324969363,8.30458756,155.32,155.26,43.94]
[1751324969559,8.30458756,155.32,155.28,1.86778756]
[1751324969964,8.30458756,155.32,155.3,6.4375]
[1751324971567,8.30458756,155.32,155.29,6.4378]
[1751324973068,6.4368,155.32,155.3,6.4375]
[1751324974772,14.28999786,155.33,155.29,1.86778756]
[1751324974968,12.4222103,155.33,155.3,1.86778756]
[1751324975177,5.9859103,155.33,155.3,1.86778756]
[1751324975374,5.9859103,155.33,155.31,6.4369]
[1751324976576,12.4222103,155.33,155.31,6.4369]
[1751324977073,5.9859103,155.33,155.31,6.4369]
[1751324978475,12.4224103,155.33,155.31,6.4369]
[1751324981074,6.4365,155.33,155.31,6.4369]
[1751324982269,8.30428756,155.33,155.3,6.4374]
[1751324986071,8.30428756,155.33,155.31,6.4371]
[1751324986271,12.4224103,155.33,155.31,6.4371]
[1751324987579,6.4369,155.32,155.29,6.4378]
[1751324987773,6.4369,155.32,155.29,8.30544824]
[1751324988180,6.4369,155.32,155.3,6.4374]
[1751324988786,14.29005854,155.33,155.3,6.4374]
[1751324990584,14.29005854,155.33,155.31,6.4371]
[1751324992388,18.43560225,155.33,155.31,6.4371]
[1751324992584,14.29005854,155.33,155.31,6.4371]
[1751324992784,18.43560225,155.33,155.31,6.4371]
[1751324993082,14.29005854,155.33,155.31,6.4371]
[1751324993282,18.43560225,155.33,155.31,6.4371]
[1751324993482,14.29005854,155.33,155.31,6.4371]
[1751324993681,18.43560225,155.33,155.31,6.4371]
[1751324993888,14.29005854,155.33,155.31,6.4371]
[1751324994186,5.9859103,155.32,155.31,6.4371]
[1751324996389,10.13145401,155.35,155.31,1.86764824]
[1751324996690,10.13145401,155.39,155.34,1.86536207]
[1751324996890,5.9859103,155.39,155.38,8.29966207]
[1751324997393,12.4191103,155.41,155.38,8.29966207]
[1751324997690,12.4191103,155.41,155.39,6.4338]
[1751324998292,6.4332,155.41,155.39,6.4338]
[1751324998687,16.7530103,155.42,155.39,6.4338]
[1751324999188,6.4335,155.4,155.37,1.86536207]
[1751324999388,12.18567237,155.42,155.37,1.86536207]
[1751324999590,10.3203103,155.42,155.38,6.4342]
[1751324999884,5.9859103,155.42,155.37,1.86536207]
[1751325000093,5.9859103,155.43,155.4,8.29876207]
[1751325000292,5.9859103,155.43,155.39,1.86536207]
[1751325000490,7.85127237,155.43,155.39,1.86536207]
[1751325000795,6.4328,155.42,155.39,8.29906207]
[1751325001994,6.4328,155.42,155.4,6.4333]
[1751325002388,6.4331,155.41,155.39,1.86536207]
[1751325005299,6.4331,155.41,155.38,8.29926207]
[1751325007896,6.4327,155.42,155.39,6.4338]
[1751325008100,1.86536207,155.43,155.38,1.86536207]
[1751325008504,6.4328,155.42,155.39,1.86536207]
[1751325009003,6.4328,155.42,155.39,8.29896207]
[1751325009202,6.4324,155.43,155.39,1.86536207]
[1751325009498,2.13390253,155.45,155.4,43.86]
[1751325009499,3.9992646,155.45,155.4,43.86]
[1751325009702,5.9859103,155.47,155.44,1.86536207]
[1751325010004,10.09297237,155.48,155.44,8.29706207]
[1751325010205,1.86536207,155.47,155.44,8.29706207]
[1751325010607,8.29606207,155.47,155.44,8.29706207]
[1751325011910,6.4307,155.47,155.44,6.4317]
[1751325014409,8.11981283,155.52,155.43,43.86]
[1751325014608,2.91277077,155.51,155.44,2.91277077]